fUST/lending_fUST_20240530
["ID","MTS","AMOUNT","RATE_DAILY","PERIOD"]
[328185907,1717025440709,-151.0,0.00022806,2]
[328185908,1717025440718,-151.0,0.00022806,2]
[328185909,1717025440727,-151.0,0.00022806,2]
[328185910,1717025440737,-151.0,0.00022806,2]
[328185911,1717025440747,-151.0,0.00022806,2]
[328185912,1717025440757,-151.0,0.00022806,2]
[328185913,1717025440767,-151.0,0.00022806,2]
[328185914,1717025440777,-176.435332,0.00022806,2]
[328185915,1717025440787,-42.3358717,0.00022806,2]
[328185916,1717025440797,-309.73672456,0.00022806,2]
[328185917,1717025440807,-233.17853076,0.00022806,2]
[328185918,1717025440816,-309.50390771,0.00022806,2]
[328185919,1717025440826,-186.34335063,0.00022806,2]
[328185920,1717025440836,-513.61746397,0.00022806,2]
[328185921,1717025440846,-266.78919273,0.00022806,2]
[328185922,1717025440856,-6377.6385512,0.00022806,2]
[328185923,1717025440866,-157.52411663,0.00022806,2]
[328185924,1717025440878,-252.23126395,0.00022806,2]
[328185925,1717025440888,-1990.63089562,0.00022806,2]
[328185926,1717025440898,-264.73526248,0.00022806,2]
[328185927,1717025440908,-482.19367,0.00022807,2]
[328185928,1717025440918,-482.19367,0.00022807,2]
[328185929,1717025440927,-151.0,0.00022807,2]
[328185930,1717025440937,-1018.072048,0.00022807,2]
[328185931,1717025440947,-1018.072048,0.00022807,2]
[328185932,1717025440956,-151.0,0.00022807,2]
[328185933,1717025440966,-155.02790502,0.00022807,2]
[328185934,1717025440976,-3586.85397225,0.00022807,2]
[328185935,1717025440986,-196.97940916,0.00022897,7]
[328185936,1717025440996,-4285.41577812,0.00022897,2]
[328185962,1717026446135,-757.13173379,9.898e-05,2]
[328185963,1717026446156,-1728.13088088,9.899e-05,2]
[328185964,1717026446176,-897.05089183,9.999e-05,2]
[328185965,1717026446197,-5794.21554444,0.00017981,2]
[328186052,1717026632698,-154.87609912,0.00017981,2]
[328186053,1717026632708,-3019.58070132,0.00017981,2]
[328186054,1717026632720,-6936.5616625,0.00017981,2]
[328186055,1717026632731,-9149.64209174,0.00017981,2]
[328186056,1717026632741,-473.90946085,0.000189,2]
[328186057,1717026632750,-184.82760961,0.000191,2]
[328186058,1717026632760,-165.308995,0.00019178,2]
[328186059,1717026632770,-337.305975,0.00019229,2]
[328186060,1717026632781,-3946.78326531,0.00020606,2]
[328186061,1717026632791,-154.8915759,0.00020704,2]
[328186062,1717026632801,-524.66216611,0.00020704,2]
[328186063,1717026632810,-896.90941239,0.00020704,2]
[328186064,1717026632819,-944.07185449,0.00020704,2]
[328186065,1717026632829,-274.99910967,0.00020704,2]
[328186066,1717026632838,-179.19540084,0.00020704,2]
[328186067,1717026632847,-241.21325634,0.00020704,2]
[328186068,1717026632857,-332.32164331,0.00020705,2]
[328186069,1717026632867,-1098.62540245,0.00020705,2]
[328186070,1717026632876,-1547.59483761,0.000209,2]
[328186071,1717026632886,-394.32917332,0.00020998,2]
[328186072,1717026632895,-7769.21746255,0.00020999,2]
[328186073,1717026632905,-3757.0050476,0.00021,2]
[328186074,1717026632914,-198.11151564,0.00021,2]
[328186075,1717026632928,-10053.93654164,0.00021,2]
[328186076,1717026632937,-168.43044,0.00021918,2]
[328186077,1717026632950,-912.47433407,0.000223,2]
[328186078,1717026632959,-2069.03664064,0.00022327,2]
[328186079,1717026632970,-4229.78307947,0.00022476,2]
[328186080,1717026632979,-150.0,0.00022579,2]
[328186081,1717026632988,-2374.74321496,0.00022672,2]
[328186082,1717026632997,-181.39757535,0.000227,2]
[328186083,1717026633008,-181.39757,0.000227,2]
[328186084,1717026633018,-254.04,0.00022763,3]
[328186085,1717026633028,-762.17,0.00022763,3]
[328186086,1717026633037,-581.4409067,0.00022771,2]
[328186087,1717026633046,-581.4409067,0.00022771,2]
[328186088,1717026633055,-581.4409067,0.00022771,2]
[328186089,1717026633207,-151.0,0.00022771,2]
[328186090,1717026633216,-151.0,0.00022771,2]
[328186091,1717026633226,-151.0,0.00022771,2]
[328186092,1717026633235,-151.0,0.00022771,2]
[328186093,1717026633244,-151.0,0.00022771,2]
[328186094,1717026633254,-213.29936282,0.00022772,2]
[328186095,1717026633263,-154.87609912,0.00022772,2]
[328186096,1717026633273,-151.0,0.00022772,2]
[328186097,1717026633282,-193.754658,0.00022772,2]
[328186098,1717026633291,-193.754658,0.00022772,2]
[328186099,1717026633300,-151.0,0.00022772,2]
[328186100,1717026633309,-3709.85560036,0.00022773,2]
[328186101,1717026633318,-156.8699674,0.00022776,2]
[328186102,1717026633327,-282.0,0.000228,2]
[328186103,1717026633335,-151.0,0.00022884,2]
[328186104,1717026633344,-151.0,0.00022884,2]
[328186105,1717026633354,-151.0,0.00022884,2]
[328186106,1717026633363,-154.93801241,0.00022895,2]
[328186107,1717026633372,-616.65499208,0.00022895,2]
[328186108,1717026633381,-151.0,0.00022895,2]
[328186109,1717026633390,-151.0,0.00022895,2]
[328186110,1717026633399,-5.74063793,0.00022895,2]
[328186111,1717026633412,-145.25936207,0.00022895,2]
[328186112,1717026633421,-523.49146573,0.00022896,2]
[328186113,1717026633430,-105.8991722,0.00022896,2]
[328186126,1717026638079,-239.46208187,0.00022485,2]
[328186127,1717026638088,-282.92645412,0.0002277,2]
[328186128,1717026638097,-500.0,0.0002277,2]
[328186129,1717026638106,-279.10650467,0.0002277,2]
[328186130,1717026638115,-500.0,0.0002277,2]
[328186131,1717026638123,-500.0,0.0002277,2]
[328186132,1717026638132,-500.0,0.0002277,2]
[328186133,1717026638141,-500.0,0.0002277,2]
[328186134,1717026638150,-500.0,0.0002277,2]
[328186135,1717026638158,-500.0,0.0002277,2]
[328186136,1717026638167,-500.0,0.0002277,2]
[328186137,1717026638176,-500.0,0.0002277,2]
[328186138,1717026638184,-500.0,0.0002277,2]
[328186139,1717026638193,-500.0,0.0002277,2]
[328186140,1717026638202,-186.00497434,0.0002277,2]
[328186141,1717026638320,-313.99502566,0.0002277,2]
[328186142,1717026638329,-500.0,0.0002277,2]
[328186143,1717026638338,-500.0,0.0002277,2]
[328186144,1717026638348,-500.0,0.0002277,2]
[328186145,1717026638356,-500.0,0.0002277,2]
[328186146,1717026638365,-500.0,0.0002277,2]
[328186147,1717026638374,-500.0,0.0002277,2]
[328186148,1717026638383,-500.0,0.0002277,2]
[328186149,1717026638391,-500.0,0.0002277,2]
[328186150,1717026638400,-284.28126754,0.0002277,2]
[328186198,1717026641137,-215.71873246,0.0002277,2]
[328186199,1717026641148,-500.0,0.0002277,2]
[328186200,1717026641163,-500.0,0.0002277,2]
[328186201,1717026641177,-308.57126754,0.0002277,2]
[328186212,1717026646268,-224.93928124,0.00017981,2]
[328186213,1717026646278,-191.42873246,0.0002277,2]
[328186214,1717026646287,-500.0,0.0002277,2]
[328186215,1717026646297,-500.0,0.0002277,2]
[328186217,1717026646306,-218.6219863,0.0002277,2]
[328186486,1717029479097,154.87609912,9.999e-05,2]
[328186487,1717029488390,315.93964057,0.000189,2]
[328186488,1717029564536,4229.78307947,0.00018613,2]
[328186489,1717029691659,2774.02915821,0.00018972,2]
[328186490,1717029744538,726.6795054,0.00018857,2]
[328186491,1717029782263,1798.69251723,0.00018857,2]
[328186492,1717029782286,20000.0,0.00018857,2]
[328186493,1717030053381,9999.999999,9.99e-05,5]
[328186494,1717030083154,9999.999999,9.99e-05,5]
[328186495,1717030107943,9999.999999,9.99e-05,5]
[328186498,1717030140187,9999.999999,9.99e-05,5]
[328186527,1717030232207,-2774.02915822,0.00018666,2]
[328186529,1717030232217,-3101.30748277,0.00018857,2]
[328186531,1717030232226,-346.66989589,0.000189,2]
[328186532,1717030232235,-173.994813,0.00019178,2]
[328186534,1717030232244,-154.90710217,0.00019537,2]
[328186536,1717030232253,-228.3491945,0.00019537,2]
[328186538,1717030232263,-187.29533454,0.00019537,2]
[328186541,1717030232273,-175.80560738,0.00019537,2]
[328186543,1717030232282,-154.89163776,0.00019538,2]
[328186544,1717030232291,-165.630205,0.00019571,2]
[328186547,1717030232301,-264.0,0.0002,2]
[328186549,1717030232310,-547.78425343,0.0002,2]
[328186551,1717030232319,-168.652987,0.00020406,2]
[328186553,1717030232328,-181.5967108,0.00020456,2]
[328186555,1717030232337,-1044.09073715,0.00020456,2]
[328186557,1717030232347,-244.04021163,0.00020456,2]
[328186559,1717030232360,-155.07741483,0.00020456,2]
[328186561,1717030232369,-1830.67118392,0.00020456,2]
[328186562,1717030232378,-290.81246165,0.00020457,2]
[328186563,1717030232387,-165.308995,0.00020548,2]
[328186565,1717030232399,-2069.03664164,0.00021,2]
[328186567,1717030232408,-187.42283178,0.00021282,2]
[328186569,1717030232418,-1432.02000064,0.00021899,2]
[328186571,1717030232429,-2702.29609888,0.000219,2]
[328186573,1717030232439,-168.430441,0.00021918,2]
[328186575,1717030232448,-508.08,0.0002199,3]
[328186577,1717030232458,-151.0,0.00021997,2]
[328186579,1717030232467,-151.0,0.00021997,2]
[328186581,1717030232477,-151.0,0.00021997,2]
[328186583,1717030232489,-151.0,0.00021997,2]
[328186584,1717030232501,-182.198406,0.00021997,2]
[328186585,1717030232514,-155.01543962,0.00021997,2]
[328186586,1717030232527,-151.0,0.00021998,2]
[328186587,1717030232539,-197.729839,0.00021998,2]
[328186588,1717030232550,-153.426562,0.00021998,2]
[328186589,1717030232560,-480.02970192,0.00021999,2]
[328186590,1717030232571,-500.0,0.00021999,2]
[328186591,1717030232598,-195.99286128,0.00021999,2]
[328186592,1717030232611,-500.0,0.00021999,2]
[328186593,1717030232624,-500.0,0.00021999,2]
[328186594,1717030232637,-500.0,0.00021999,2]
[328186595,1717030232649,-500.0,0.00021999,2]
[328186596,1717030232663,-500.0,0.00021999,2]
[328186597,1717030232676,-500.0,0.00021999,2]
[328186598,1717030232690,-500.0,0.00021999,2]
[328186599,1717030232704,-500.0,0.00021999,2]
[328186600,1717030232716,-500.0,0.00021999,2]
[328186601,1717030232728,-500.0,0.00021999,2]
[328186602,1717030232742,-500.0,0.00021999,2]
[328186603,1717030232757,-500.0,0.00021999,2]
[328186604,1717030232768,-500.0,0.00021999,2]
[328186605,1717030232779,-500.0,0.00021999,2]
[328186606,1717030232795,-500.0,0.00021999,2]
[328186607,1717030232808,-500.0,0.00021999,2]
[328186608,1717030232821,-500.0,0.00021999,2]
[328186609,1717030232833,-500.0,0.00021999,2]
[328186610,1717030232846,-500.0,0.00021999,2]
[328186611,1717030232859,-500.0,0.00021999,2]
[328186612,1717030232870,-500.0,0.00021999,2]
[328186613,1717030232882,-500.0,0.00021999,2]
[328186614,1717030232892,-500.0,0.00021999,2]
[328186615,1717030232904,-500.0,0.00021999,2]
[328186616,1717030232914,-500.0,0.00021999,2]
[328186617,1717030232926,-500.0,0.00021999,2]
[328186618,1717030232937,-500.0,0.00021999,2]
[328186619,1717030232948,-500.0,0.00021999,2]
[328186620,1717030232960,-500.0,0.00021999,2]
[328186621,1717030232972,-500.0,0.00021999,2]
[328186622,1717030232983,-500.0,0.00021999,2]
[328186623,1717030232994,-500.0,0.00021999,2]
[328186624,1717030233006,-500.0,0.00021999,2]
[328186625,1717030233018,-500.0,0.00021999,2]
[328186626,1717030233029,-500.0,0.00021999,2]
[328186627,1717030233042,-500.0,0.00021999,2]
[328186628,1717030233055,-500.0,0.00021999,2]
[328186629,1717030233067,-500.0,0.00021999,2]
[328186630,1717030233078,-500.0,0.00021999,2]
[328186631,1717030233089,-500.0,0.00021999,2]
[328186632,1717030233099,-500.0,0.00021999,2]
[328186633,1717030233110,-411.19491701,0.00021999,2]
[328186634,1717030233121,-500.0,0.00021999,2]
[328186635,1717030233131,-500.0,0.00021999,2]
[328186636,1717030233142,-500.0,0.00021999,2]
[328186637,1717030233155,-500.0,0.00021999,2]
[328186638,1717030233167,-500.0,0.00021999,2]
[328186639,1717030233178,-500.0,0.00021999,2]
[328186640,1717030233191,-500.0,0.00021999,2]
[328186641,1717030233201,-500.0,0.00021999,2]
[328186642,1717030233211,-500.0,0.00021999,2]
[328186643,1717030233221,-500.0,0.00021999,2]
[328186644,1717030233232,-500.0,0.00021999,2]
[328186645,1717030233242,-500.0,0.00021999,2]
[328186646,1717030233254,-500.0,0.00021999,2]
[328186647,1717030233267,-500.0,0.00021999,2]
[328186648,1717030233278,-500.0,0.00021999,2]
[328186649,1717030233289,-500.0,0.00021999,2]
[328186650,1717030233299,-500.0,0.00021999,2]
[328186651,1717030233309,-500.0,0.00021999,2]
[328186652,1717030233318,-500.0,0.00021999,2]
[328186653,1717030233329,-300.0,0.00021999,2]
[328186654,1717030233340,-500.0,0.00021999,2]
[328186655,1717030233353,-151.0,0.00021999,2]
[328186656,1717030233365,-151.0,0.00021999,2]
[328186657,1717030233377,-151.0,0.00021999,2]
[328186658,1717030233391,-151.0,0.00021999,2]
[328186659,1717030233404,-151.0,0.00021999,2]
[328186660,1717030233415,-151.0,0.00021999,2]
[328186661,1717030233427,-151.0,0.00021999,2]
[328186662,1717030233442,-151.0,0.00021999,2]
[328186663,1717030233454,-151.0,0.00021999,2]
[328186664,1717030233464,-151.0,0.00021999,2]
[328186665,1717030233476,-151.0,0.00021999,2]
[328186666,1717030233486,-151.0,0.00021999,2]
[328186667,1717030233497,-152.464371,0.00021999,2]
[328186668,1717030233508,-151.0,0.00021999,2]
[328186669,1717030233519,-151.0,0.00021999,2]
[328186670,1717030233529,-151.0,0.00021999,2]
[328186671,1717030233540,-151.0,0.00021999,2]
[328186672,1717030233552,-151.0,0.00021999,2]
[328186673,1717030233562,-293.769982,0.00021999,2]
[328186674,1717030233573,-151.0,0.00021999,2]
[328186675,1717030233584,-151.0,0.00021999,2]
[328186676,1717030233594,-151.0,0.00021999,2]
[328186677,1717030233605,-151.0,0.00021999,2]
[328186678,1717030233617,-151.0,0.00021999,2]
[328186679,1717030233628,-151.0,0.00021999,2]
[328186680,1717030233640,-151.0,0.00021999,2]
[328186681,1717030233652,-224.144097,0.00021999,2]
[328186682,1717030233663,-151.0,0.00021999,2]
[328186683,1717030233673,-151.0,0.00021999,2]
[328186684,1717030233683,-180.980326,0.00021999,2]
[328186685,1717030233695,-14782.90053211,0.00022,2]
[328186725,1717030241626,-342.80499812,0.00022,2]
[328186761,1717030243476,-404.7512014,0.00022,2]
[328186783,1717030246365,-103290.86115802,0.00022,2]
[328186785,1717030246374,-151.0,0.00022,2]
[328186787,1717030246383,-151.0,0.00022,2]
[328186789,1717030246392,-151.0,0.00022,2]
[328186791,1717030246402,-152.0,0.00022069,2]
[328186793,1717030246412,-154.3112681,0.00022607,2]
[328186795,1717030246420,-153.0,0.00022607,2]
[328186797,1717030246432,-153.0,0.00022607,2]
[328186799,1717030246440,-153.0,0.00022607,2]
[328186801,1717030246449,-150.54692304,0.00022667,2]
[328186803,1717030246458,-457.61040787,0.0002277,2]
[328186805,1717030246468,-282.0,0.000228,2]
[328186807,1717030246477,-5230.3876879,0.00022897,2]
[328186809,1717030246486,-459.54675454,0.00022897,2]
[328186811,1717030246494,-151.0,0.00022897,2]
[328186813,1717030246503,-175.162017,0.00022897,2]
[328186815,1717030246512,-151.0,0.00022897,2]
[328186817,1717030246522,-309.73672456,0.00023,2]
[328186819,1717030246530,-2702.29609885,0.00023135,2]
[328186821,1717030246539,-571.85073768,0.00023434,2]
[328186823,1717030246548,-151.0,0.00023434,2]
[328186825,1717030246556,-346.6612141,0.00023544,2]
[328186827,1717030246565,-151.0,0.00023544,2]
[328186829,1717030246574,-620.02595302,0.00023695,2]
[328186831,1717030246583,-10141.96897635,0.00023825,2]
[328186833,1717030246593,-412.50131416,0.00023826,2]
[328186834,1717030246602,-1098.62540245,0.00023827,2]
[328186836,1717030246611,-944.07185449,0.00023828,2]
[328186839,1717030246620,-2033.20251904,0.00023829,2]
[328186840,1717030246629,-20601.66382106,0.0002383,2]
[328186901,1717030281586,156.8699674,9.99e-05,2]
[328186902,1717030355616,658.86301853,9.999e-05,2]
[328186903,1717031132712,658.86301853,9.999e-05,2]
[328186904,1717031159645,156.8699674,9.999e-05,2]
[328186967,1717031432591,-275.16174657,0.00018899,2]
[328186986,1717031439093,-383.70127196,0.00018899,2]
[328186987,1717031439102,-281.11326393,0.000189,2]
[328186988,1717031439112,-154.87609912,0.00020797,2]
[328186989,1717031439121,-6384.68207592,0.00020799,2]
[328186994,1717031442094,-11334.2834767,0.00020799,2]
[328187006,1717031443689,-1515.16952978,0.00020799,2]
[328187007,1717031443749,-5665.8649176,0.00020799,2]
[328187008,1717031443759,-3709.85560036,0.0002138,2]
[328187009,1717031443771,-213.29936282,0.00021383,2]
[328187010,1717031443780,-165.308995,0.00021384,2]
[328187011,1717031443789,-1321.15770353,0.00021635,2]
[328187012,1717031443799,-3036.0668806,0.00021735,2]
[328187013,1717031443808,-758.938444,0.00021812,2]
[328187014,1717031443817,-167.548553,0.00021918,2]
[328187015,1717031443826,-922.4720001,0.00022637,2]
[328187016,1717031443835,-154.93801241,0.00022665,2]
[328187017,1717031443845,-342.32539495,0.00022665,2]
[328191896,1717032121312,658.86301853,9.999e-05,2]
[328191928,1717032635021,-658.86301853,0.00018899,2]
[328191930,1717032635031,-287.40884262,0.000189,2]
[328191932,1717032635041,-181.39757535,0.00019,2]
[328191934,1717032635050,-181.39757,0.00019,2]
[328191936,1717032635059,-77.09058674,0.0002,2]
[328192048,1717032663860,190.23424749,0.000156,2]
[328192049,1717033020831,7519.43676612,0.00017898,2]
[328192050,1717033035990,4070.1119921,0.00025,60]
[328192051,1717033051380,186.872179,0.00017898,7]
[328192052,1717033235027,658.9724785,9.999e-05,2]
[328192064,1717033800591,658.9724785,9.999e-05,2]
[328192078,1717033834991,-2062.18266689,0.00017898,2]
[328192080,1717033835000,-549.325981,0.00017959,2]
[328192082,1717033835012,-276.54178903,0.00018597,2]
[328192084,1717033835022,-179.75236361,0.00018597,2]
[328192086,1717033835031,-242.36232115,0.00018597,2]
[328192088,1717033835040,-658.9724785,0.00018597,2]
[328192090,1717033835049,-947.03726332,0.00018598,2]
[328192091,1717033835058,-24900.0,0.00018599,2]
[328192092,1717033835067,-1101.91721998,0.00019491,2]
[328192093,1717033835078,-154.92042004,0.00019491,2]
[328192094,1717033835086,-527.09691787,0.00019491,2]
[328192096,1717033835095,-899.66383706,0.00019491,2]
[328192098,1717033835105,-352.92997326,0.00019492,2]
[328192100,1717033835114,-166.715173,0.000198,2]
[328192103,1717033835123,-4230.52943513,0.00019912,2]
[328192105,1717033835133,-150.44771377,0.00019961,2]
[328192107,1717033835142,-570.51755246,0.0002,2]
[328192108,1717033835151,-157.27245886,0.0002,2]
[328192111,1717033835162,-155.1591115,0.0002,2]
[328192113,1717033835171,-2099.11162481,0.00020973,2]
[328192114,1717033835181,-5833.5579016,0.00021,2]
[328192115,1717033835191,-10055.83782448,0.00021,2]
[328192116,1717033835200,-198.1489967,0.00021,2]
[328192117,1717033835210,-398.19150159,0.00021072,2]
[328192118,1717033835219,-68.71855205,0.00021072,2]
[328192130,1717033839846,-121.94653701,0.00021072,2]
[328192131,1717033839856,-500.0,0.00021072,2]
[328192132,1717033839866,-500.0,0.00021072,2]
[328192133,1717033839875,-500.0,0.00021072,2]
[328192134,1717033839885,-173.58786687,0.00021072,2]
[328192221,1717033842350,-249.5455737,0.00021072,2]
[328192223,1717033842360,-109.95542634,0.00021072,2]
[328192361,1717033843705,-390.04457366,0.00021072,2]
[328192363,1717033843714,-500.0,0.00021072,2]
[328192365,1717033843723,-500.0,0.00021072,2]
[328192368,1717033843732,-500.0,0.00021072,2]
[328192370,1717033843742,-500.0,0.00021072,2]
[328192372,1717033843751,-500.0,0.00021072,2]
[328192373,1717033843760,-500.0,0.00021072,2]
[328192375,1717033843772,-500.0,0.00021072,2]
[328192377,1717033843781,-500.0,0.00021072,2]
[328192379,1717033843790,-500.0,0.00021072,2]
[328192381,1717033843799,-65.09754391,0.00021072,2]
[328192630,1717033846318,-434.90245609,0.00021072,2]
[328192632,1717033846327,-500.0,0.00021072,2]
[328192634,1717033846336,-275.97580136,0.00021072,2]
[328192654,1717033846511,-224.02419864,0.00021072,2]
[328192656,1717033846523,-275.97580136,0.00021072,2]
[328192660,1717033846544,-224.02419864,0.00021072,2]
[328192662,1717033846553,-500.0,0.00021072,2]
[328192664,1717033846562,-500.0,0.00021072,2]
[328192666,1717033846571,-500.0,0.00021072,2]
[328192668,1717033846579,-500.0,0.00021072,2]
[328192670,1717033846588,-500.0,0.00021072,2]
[328192672,1717033846598,-500.0,0.00021072,2]
[328192674,1717033846606,-500.0,0.00021072,2]
[328192676,1717033846615,-500.0,0.00021072,2]
[328192678,1717033846624,-500.0,0.00021072,2]
[328192680,1717033846633,-300.0,0.00021072,2]
[328192682,1717033846641,-500.0,0.00021072,2]
[328192683,1717033846650,-155.06849328,0.00021073,4]
[328192685,1717033846660,-155.0788246,0.00021073,2]
[328192687,1717033846669,-155.08527595,0.00021073,2]
[328192689,1717033846680,-155.11016593,0.00021073,2]
[328192691,1717033846689,-155.04445974,0.00021073,2]
[328192694,1717033846698,-1068.95717133,0.00021073,2]
[328192695,1717033846707,-301.77619755,0.00021073,2]
[328192697,1717033846716,-1877.0445097,0.00021073,2]
[328192699,1717033846725,-329.18118921,0.00021073,2]
[328192701,1717033846734,-227.64999549,0.00021073,2]
[328192703,1717033846745,-189.76142035,0.00021073,2]
[328192705,1717033846755,-155.43528417,0.00021073,2]
[328192707,1717033846764,-1160.41593993,0.00021073,2]
[328192709,1717033846774,-282.35149363,0.00021073,2]
[328192711,1717033846783,-382.33187536,0.00021073,2]
[328192713,1717033846792,-2892.61220145,0.00021073,2]
[328192715,1717033846802,-155.72310404,0.00021073,2]
[328192717,1717033846811,-396.70251874,0.00021073,2]
[328192719,1717033846825,-3074.75177294,0.00021073,2]
[328192721,1717033846835,-1317.88709904,0.00021073,2]
[328192723,1717033846844,-195.46639127,0.00021073,2]
[328192725,1717033846855,-263.88666788,0.00021073,2]
[328192727,1717033846864,-173.30888289,0.00021073,2]
[328192729,1717033846874,-913.96559083,0.00021073,2]
[328192731,1717033846882,-2534.30279146,0.00021073,2]
[328192733,1717033846892,-155.04491505,0.00021073,2]
[328192735,1717033846905,-151.0,0.00021073,2]
[328192737,1717033846914,-153.854975,0.00021073,2]
[328192739,1717033846924,-159.269348,0.00021073,2]
[328192741,1717033846932,-187.342888,0.00021073,2]
[328192743,1717033846942,-163.34138,0.00021876,2]
[328192745,1717033846951,-151.0,0.00021876,2]
[328192747,1717033846960,-156.74063793,0.00021876,2]
[328192749,1717033846969,-151.0,0.00021877,2]
[328192751,1717033846979,-152.38583,0.00021877,2]
[328192753,1717033846988,-153.0,0.00021882,2]
[328192755,1717033846997,-154.582184,0.00021882,2]
[328192757,1717033847006,-153.0,0.00021882,2]
[328192759,1717033847015,-306.0,0.00021882,2]
[328192761,1717033847024,-153.0,0.00021882,2]
[328192763,1717033847032,-169.462128,0.00021918,2]
[328192765,1717033847041,-291.8770004,0.00021978,2]
[328192767,1717033847050,-291.8770004,0.00021978,2]
[328192769,1717033847059,-583.7540008,0.00021978,2]
[328192771,1717033847068,-291.8770004,0.00021978,2]
[328192773,1717033847077,-291.8770004,0.00021978,2]
[328192775,1717033847087,-291.8770004,0.00021978,2]
[328192777,1717033847095,-152.306234,0.00022254,2]
[328192779,1717033847104,-912.72900322,0.000223,2]
[328192781,1717033847113,-291.8770004,0.00022534,2]
[328192783,1717033847123,-511.83,0.0002254,3]
[328192785,1717033847132,-511.83,0.0002254,3]
[328192787,1717033847141,-151.0,0.00022549,2]
[328192789,1717033847150,-151.0,0.00022549,2]
[328192791,1717033847159,-16303.36077309,0.0002255,2]
[328192793,1717033847169,-151.0,0.0002255,2]
[328192795,1717033847178,-151.0,0.0002255,2]
[328192797,1717033847187,-269.040706,0.0002255,2]
[328192799,1717033847197,-192.911412,0.0002255,2]
[328192801,1717033847206,-402.40865188,0.00022611,2]
[328193239,1717034467226,658.9724785,9.999e-05,2]
[328193265,1717035032739,-3446.35,0.00017971,2]
[328193269,1717035032936,-276.43367366,0.00017971,2]
[328193290,1717035038626,-658.9724785,0.0001797,2]
[328193292,1717035038636,-21961.34448997,0.00017971,2]
[328193293,1717035038646,-24900.0,0.00018072,2]
[328193295,1717035038656,-274.662991,0.00018093,2]
[328193296,1717035038667,-6273.47613537,0.00018774,2]
[328193298,1717035038677,-373.17722142,0.00018776,2]
[328193300,1717035038688,-207.92947824,0.00018776,2]
[328193302,1717035038697,-187.14406648,0.00018777,2]
[328193304,1717035038707,-760.50334096,0.00018777,2]
[328193306,1717035038716,-352.37876851,0.000189,2]
[328193318,1717035038829,-166.715173,0.00019178,2]
[328193320,1717035038839,-165.3089988,0.00019312,2]
[328193322,1717035038848,-3952.48780509,0.000199,2]
[328193324,1717035038857,-666.38394615,0.0002,2]
[328193326,1717035038867,-153.0,0.00020822,2]
[328193328,1717035038876,-153.0,0.00020822,2]
[328193330,1717035038886,-153.0,0.00021741,2]
[328193332,1717035038895,-153.0,0.00021781,2]
[328193334,1717035038905,-153.0,0.00021781,2]
[328193336,1717035038914,-153.0,0.00021781,2]
[328193337,1717035038923,-153.0,0.00021781,2]
[328193339,1717035038932,-1598.80756948,0.00021841,2]
[328193341,1717035038943,-153.0,0.00021841,2]
[328193343,1717035038952,-153.0,0.00021841,2]
[328193345,1717035038961,-169.462128,0.00021918,2]
[328193347,1717035038971,-153.0,0.00021941,2]
[328193349,1717035038980,-177.9148505,0.00021941,2]
[328193351,1717035038990,-153.0,0.00021941,2]
[328193353,1717035039000,-239.97182039,0.00022278,2]
[328193355,1717035039010,-282.0,0.000226,2]
[328193357,1717035039019,-274.32959713,0.00022665,2]
[328193359,1717035039029,-153.0,0.0002274,2]
[328193361,1717035039038,-275.5632009,0.0002274,2]
[328193363,1717035039048,-194.3076846,0.0002274,2]
[328193365,1717035039059,-153.0,0.0002274,2]
[328193367,1717035039069,-153.0,0.0002274,2]
[328193369,1717035039078,-1598.80756944,0.00023478,2]
[328193371,1717035039088,-291.8770004,0.00023562,2]